bitfinex-derivatives/quotes_BTCF0:USTF0_20250626
["timestamp","ask_amount","ask_price","bid_price","bid_amount"]
[1750963050208,0.15805832,107360.0,107350.0,1.134616]
[1750963050411,0.16005832,107360.0,107350.0,1.228216]
[1750963050618,0.16005832,107360.0,107350.0,1.804296]
[1750963051613,0.16005832,107360.0,107350.0,1.805296]
[1750963053418,0.34628302,107360.0,107350.0,1.805296]
[1750963055914,0.34428302,107360.0,107350.0,1.805296]
[1750963059317,0.34428302,107360.0,107350.0,1.774996]
[1750963059516,0.37488302,107360.0,107350.0,1.062796]
[1750963059815,0.37488302,107360.0,107350.0,1.774996]
[1750963060016,0.37488302,107360.0,107350.0,1.3843483]
[1750963060216,0.40498302,107360.0,107350.0,1.3843483]
[1750963061416,0.34428302,107360.0,107350.0,1.742696]
[1750963061916,0.34428302,107360.0,107350.0,1.773496]
[1750963062308,0.34428302,107360.0,107350.0,1.4151483]
[1750963062514,0.34428302,107360.0,107350.0,1.773496]
[1750963063412,0.34628302,107360.0,107350.0,1.773496]
[1750963065216,0.34428302,107360.0,107350.0,1.773496]
[1750963065418,0.34428302,107360.0,107350.0,1.772496]
[1750963066420,0.34428302,107360.0,107350.0,1.411696]
[1750963067019,0.34428302,107360.0,107350.0,0.700496]
[1750963067216,0.34428302,107360.0,107350.0,1.276536]
[1750963067417,0.37668302,107360.0,107350.0,0.9181883]
[1750963067717,0.37668302,107360.0,107350.0,1.276536]
[1750963068720,0.40698302,107360.0,107350.0,1.276536]
[1750963070016,0.76778302,107360.0,107350.0,0.8098283]
[1750963070613,1.12613072,107360.0,107350.0,0.001]
[1750963070819,0.1862768,107330.0,107320.0,0.90296675]
[1750963071014,0.6870768,107330.0,107320.0,0.23378305]
[1750963071223,1.1403245,107330.0,107320.0,0.18721125]
[1750963071721,0.7819768,107330.0,107320.0,0.18721125]
[1750963072121,1.3580168,107330.0,107320.0,0.18721125]
[1750963072322,1.38613753,107330.0,107320.0,0.18921125]
[1750963072720,1.38613753,107330.0,107320.0,0.00293175]
[1750963073434,1.38613753,107330.0,107320.0,0.18922585]
[1750963073730,1.3580168,107330.0,107320.0,0.19222585]
[1750963073922,1.4333365,107330.0,107320.0,0.19222585]
[1750963074430,1.3580168,107330.0,107320.0,0.19222585]
[1750963075026,1.38609886,107330.0,107320.0,0.19222585]
[1750963075626,1.39548041,107330.0,107320.0,0.19222585]
[1750963077034,1.39548041,107330.0,107320.0,0.00593175]
[1750963077234,1.39548041,107330.0,107320.0,0.19222585]
[1750963077823,1.39548041,107330.0,107320.0,0.00593175]
[1750963078027,1.75382811,107330.0,107320.0,0.00593175]
[1750963078424,1.75382811,107330.0,107320.0,0.19222585]
[1750963079036,1.82917815,107330.0,107320.0,0.19222585]
[1750963079536,1.47083045,107330.0,107320.0,0.19222585]
[1750963080533,1.82917815,107330.0,107320.0,0.00593175]
[1750963080740,2.16917815,107330.0,107320.0,0.00593175]
[1750963081330,0.1863289,107300.0,107290.0,0.28043701]
[1750963081633,0.3063289,107300.0,107290.0,0.2800641]
[1750963081833,0.4041289,107300.0,107290.0,0.2800641]
[1750963082030,0.4041289,107300.0,107290.0,0.6384118]
[1750963082640,0.4051289,107300.0,107290.0,0.6444118]
[1750963082937,0.3403289,107300.0,107290.0,0.6444118]
[1750963083141,0.3403289,107300.0,107290.0,0.3478641]
[1750963083634,0.3403289,107300.0,107290.0,0.7132118]
[1750963083833,0.154,107300.0,107290.0,1.0740118]
[1750963084842,0.121,107300.0,107290.0,1.0740118]
[1750963086037,0.3073289,107300.0,107290.0,1.0740118]
[1750963087641,0.121,107300.0,107290.0,1.0740118]
[1750963088640,0.3073289,107300.0,107290.0,1.0740118]
[1750963090033,0.121,107300.0,107290.0,1.0740118]
[1750963092436,0.14874059,107300.0,107290.0,1.0740118]
[1750963093238,0.121,107300.0,107290.0,1.0740118]
[1750963093744,0.001,107300.0,107290.0,1.0740118]
[1750963094649,0.131,107300.0,107290.0,1.0740118]
[1750963094838,0.001,107300.0,107290.0,1.0740118]
[1750963095638,0.001,107300.0,107290.0,0.7156641]
[1750963095947,0.121,107300.0,107290.0,1.0740118]
[1750963097547,0.001,107300.0,107290.0,1.0740118]
[1750963097748,0.121,107300.0,107290.0,1.0740118]
[1750963097948,0.131,107300.0,107290.0,1.0740118]
[1750963098150,0.001,107300.0,107290.0,1.0740118]
[1750963098646,0.131,107300.0,107290.0,1.0740118]
[1750963099046,0.3173289,107300.0,107290.0,1.0740118]
[1750963099844,0.3173289,107300.0,107290.0,1.08907653]
[1750963100850,0.3173289,107300.0,107290.0,1.44987653]
[1750963101046,0.3173289,107300.0,107290.0,2.16223653]
[1750963101245,0.3504289,107300.0,107290.0,2.16223653]
[1750963101852,0.3811289,107300.0,107290.0,2.16223653]
[1750963102243,0.44008583,107300.0,107290.0,2.16223653]
[1750963104750,0.44008583,107300.0,107290.0,1.80388883]
[1750963105050,0.44008583,107300.0,107290.0,2.16223653]
[1750963105750,0.44008583,107300.0,107290.0,1.44987653]
[1750963105953,0.44008583,107300.0,107290.0,2.16223653]
[1750963108753,0.44008583,107300.0,107290.0,1.80143653]
[1750963109657,0.44008583,107300.0,107290.0,0.66647653]
[1750963109855,0.80088583,107300.0,107290.0,0.88432883]
[1750963111552,0.81020934,107300.0,107290.0,0.88432883]
[1750963113760,0.81020934,107300.0,107290.0,0.8692641]
[1750963116458,0.80088583,107300.0,107290.0,0.8692641]
[1750963117455,0.80088583,107300.0,107290.0,1.2276118]
[1750963117659,0.44008583,107300.0,107290.0,1.2276118]
[1750963123364,0.44008583,107300.0,107290.0,0.8692641]
[1750963123963,0.80088583,107300.0,107290.0,0.8692641]
[1750963124364,0.80088583,107300.0,107290.0,0.8692241]
[1750963125365,0.80088583,107300.0,107290.0,1.2275718]
[1750963125966,0.80088583,107300.0,107290.0,0.8692241]
[1750963126158,0.80088583,107300.0,107290.0,1.2275718]
[1750963127860,0.44008583,107300.0,107290.0,1.2275718]
[1750963128067,0.44008583,107300.0,107290.0,1.2599718]
[1750963131368,0.44008583,107300.0,107290.0,0.6838118]
[1750963131568,0.80088583,107300.0,107290.0,0.8226381]
[1750963133272,0.80088583,107300.0,107290.0,0.2464781]
[1750963133474,0.80088583,107300.0,107290.0,0.8225981]
[1750963133772,0.80088583,107300.0,107290.0,0.2464781]
[1750963134470,0.80088583,107300.0,107290.0,0.0135591]
[1750963134471,1.53923353,107300.0,107290.0,0.0135591]
[1750963135173,1.67531353,107300.0,107290.0,0.0135591]
[1750963139163,2.03611353,107300.0,107290.0,0.0135591]
[1750963159396,1.31451353,107300.0,107290.0,0.0135591]
[1750963159592,2.03611353,107300.0,107290.0,0.0135591]
[1750963164304,2.11053421,107300.0,107290.0,0.0135591]
[1750963166199,2.28980277,107300.0,107290.0,0.0135591]
[1750963167202,2.21538209,107300.0,107290.0,0.0135591]
[1750963167402,2.28980277,107300.0,107290.0,0.0135591]
[1750963169106,1.56820277,107300.0,107290.0,0.0135591]
[1750963169306,2.28980277,107300.0,107290.0,0.0135591]
[1750963173510,2.21538209,107300.0,107290.0,0.0135591]
[1750963173814,2.28980277,107300.0,107290.0,0.0135591]
[1750963180807,0.0465897,107290.0,107260.0,0.5354267]
[1750963181111,0.972723,107280.0,107270.0,0.0321]
[1750963181306,1.89617993,107280.0,107270.0,0.0321]
[1750963182102,0.186381,107270.0,107260.0,0.4908388]
[1750963182312,1.52976606,107270.0,107260.0,0.5229388]
[1750963182914,1.52976606,107270.0,107260.0,0.5209388]
[1750963183107,1.26095793,107270.0,107260.0,0.5209388]
[1750963183312,1.26095793,107270.0,107260.0,0.78974693]
[1750963183913,1.33829347,107270.0,107260.0,0.79774693]
[1750963184103,1.33829347,107270.0,107260.0,0.82964693]
[1750963184715,0.76237347,107270.0,107260.0,0.82964693]
[1750963186213,0.76237347,107270.0,107260.0,0.29203067]
[1750963186415,0.76237347,107270.0,107260.0,0.5608388]
[1750963190519,0.40157347,107270.0,107260.0,0.5608388]
[1750963190714,0.13885693,107270.0,107260.0,1.61039125]
[1750963190922,0.01717097,107280.0,107270.0,0.186381]
[1750963191114,0.0002,107290.0,107280.0,0.1863636]
[1750963191314,0.76157308,107300.0,107290.0,0.1863463]
[1750963191521,0.7237291,107300.0,107290.0,0.48645443]
[1750963193815,0.99253723,107300.0,107290.0,0.48645443]
[1750963194316,0.99253723,107300.0,107290.0,0.2176463]
[1750963194317,0.7237291,107300.0,107290.0,0.2176463]
[1750963194521,0.7247291,107300.0,107290.0,0.2196463]
[1750963196720,0.7247291,107300.0,107290.0,0.57791341]
[1750963197322,0.6781438,107300.0,107290.0,0.57791341]
[1750963198418,0.4918,107300.0,107290.0,0.57791341]
[1750963198721,0.4918,107300.0,107290.0,1.65960247]
[1750963198722,0.131,107300.0,107290.0,1.65960247]
[1750963198921,0.001,107300.0,107290.0,1.65960247]
[1750963199324,0.121,107300.0,107290.0,1.65960247]
[1750963199818,0.001,107300.0,107290.0,1.65960247]
[1750963200216,0.141,107300.0,107290.0,1.65960247]
[1750963200416,0.001,107300.0,107290.0,1.65960247]
[1750963201025,0.131,107300.0,107290.0,1.65960247]
[1750963201422,0.001,107300.0,107290.0,1.65960247]
[1750963202525,0.141,107300.0,107290.0,1.65960247]
[1750963204222,0.141,107300.0,107290.0,2.02040247]
[1750963205726,0.141,107300.0,107290.0,2.05070247]
[1750963206929,0.001,107300.0,107290.0,2.05070247]
[1750963209342,0.131,107300.0,107290.0,2.05070247]
[1750963213446,0.001,107300.0,107290.0,2.05070247]
[1750963218349,0.0322,107300.0,107290.0,2.05070247]
[1750963219350,0.05973865,107300.0,107290.0,2.05070247]
[1750963219557,0.05973865,107300.0,107290.0,1.69243536]
[1750963219849,0.05973865,107300.0,107290.0,2.05070247]
[1750963220749,0.0322,107300.0,107290.0,2.05070247]
[1750963221352,0.05975671,107300.0,107290.0,2.05070247]
[1750963223851,0.0322,107300.0,107290.0,2.05070247]
[1750963225654,0.0322,107300.0,107290.0,1.32910247]
[1750963225955,0.0322,107300.0,107290.0,2.05070247]
[1750963226253,0.0322,107300.0,107290.0,2.2296518]
[1750963226442,0.0322,107300.0,107290.0,1.8688518]
[1750963226648,0.1322,107300.0,107290.0,1.60024358]
[1750963226848,0.1964,107300.0,107290.0,1.56894358]
[1750963228657,0.1984,107300.0,107290.0,1.56894358]
[1750963229158,0.1984,107300.0,107290.0,1.8355518]
[1750963229458,0.22599051,107300.0,107290.0,1.8355518]
[1750963229657,0.22599051,107300.0,107290.0,1.56694358]
[1750963230259,0.22599051,107300.0,107290.0,1.65653098]
[1750963232159,0.22599051,107300.0,107290.0,1.62623098]
[1750963232457,0.22599051,107300.0,107290.0,1.62587098]
[1750963232658,0.41231941,107300.0,107290.0,1.62587098]
[1750963234060,0.41231941,107300.0,107290.0,0.91451098]
[1750963234258,1.13131503,107300.0,107290.0,0.1863463]
[1750963234460,1.13131503,107300.0,107290.0,0.7618663]
[1750963234961,1.13131503,107300.0,107290.0,0.1863463]
[1750963235148,1.13131503,107300.0,107290.0,0.7618663]
[1750963235459,1.13131503,107300.0,107290.0,0.1863463]
[1750963238156,0.77311941,107300.0,107290.0,0.1863463]
[1750963241559,0.77311941,107300.0,107290.0,0.54454192]
[1750963243158,0.41231941,107300.0,107290.0,0.54454192]
[1750963243363,0.77311941,107300.0,107290.0,0.54454192]
[1750963243767,0.41231941,107300.0,107290.0,0.54454192]
[1750963243964,0.77311941,107300.0,107290.0,0.54454192]
[1750963245063,0.41231941,107300.0,107290.0,0.54454192]
[1750963245264,0.77311941,107300.0,107290.0,0.54454192]
[1750963246364,0.41231941,107300.0,107290.0,0.6828663]
[1750963246567,0.41231941,107300.0,107290.0,1.07356192]
[1750963247158,0.41231941,107300.0,107290.0,1.04106192]
[1750963248369,0.41231941,107300.0,107290.0,1.61658192]
[1750963251760,0.41231941,107300.0,107290.0,1.25578192]
[1750963252368,0.41231941,107300.0,107290.0,0.54454192]
[1750963252569,0.77311941,107300.0,107290.0,0.7618263]
[1750963253172,0.77311941,107300.0,107290.0,0.1863463]
[1750963253362,0.77311941,107300.0,107290.0,0.7618263]
[1750963254771,0.77311941,107300.0,107290.0,1.12002192]
[1750963254972,0.16179051,107300.0,107290.0,1.48082192]
[1750963255170,0.16179051,107300.0,107290.0,1.54532192]
[1750963258769,0.34811941,107300.0,107290.0,1.1871263]
[1750963258969,0.34811941,107300.0,107290.0,1.54532192]
[1750963260777,0.16179051,107300.0,107290.0,1.54532192]
[1750963261580,0.13059051,107300.0,107290.0,1.54532192]
[1750963261780,0.13059051,107300.0,107290.0,1.93712192]
[1750963262076,0.103,107300.0,107290.0,1.93712192]
[1750963262474,0.003,107300.0,107290.0,1.93712192]
[1750963263178,0.0002,107310.0,107300.0,0.1863289]
[1750963263483,0.0002,107320.0,107310.0,0.1863115]
[1750963263777,0.06422709,107330.0,107320.0,0.1862942]
[1750963263970,0.20402709,107330.0,107320.0,1.05607713]
[1750963264477,0.39030389,107330.0,107320.0,1.13952454]
[1750963264873,0.20402709,107330.0,107320.0,1.13952454]
[1750963265070,0.20702709,107330.0,107320.0,1.13952454]
[1750963268178,0.20702709,107330.0,107320.0,0.78132892]
[1750963268384,0.39330389,107330.0,107320.0,1.13952454]
[1750963268573,0.20702709,107330.0,107320.0,1.13952454]
[1750963269078,0.21102709,107330.0,107320.0,1.13952454]
[1750963269377,0.39730389,107330.0,107320.0,1.13952454]
[1750963270579,0.21102709,107330.0,107320.0,1.13952454]
[1750963270978,0.17822709,107330.0,107320.0,1.13952454]
[1750963273578,0.20922709,107330.0,107320.0,1.13952454]
[1750963274681,0.39550389,107330.0,107320.0,1.13952454]
[1750963275082,0.20922709,107330.0,107320.0,1.13952454]
[1750963275476,0.23667957,107330.0,107320.0,1.13952454]
[1750963275878,0.23667957,107330.0,107320.0,1.17262454]
[1750963276581,0.20922709,107330.0,107320.0,1.17262454]
[1750963277581,0.39550389,107330.0,107320.0,1.17262454]
[1750963277885,0.20922709,107330.0,107320.0,1.17262454]
[1750963282380,0.39550389,107330.0,107320.0,0.81442892]
[1750963282581,0.42840389,107330.0,107320.0,1.16314274]
[1750963283591,0.42840389,107330.0,107320.0,1.17234697]
[1750963284392,0.24212709,107330.0,107320.0,1.17234697]
[1750963289594,0.20922709,107330.0,107320.0,1.17234697]
[1750963292199,0.23672227,107330.0,107320.0,1.17234697]
[1750963292896,0.20922709,107330.0,107320.0,1.17234697]
[1750963293092,0.23662479,107330.0,107320.0,1.20404697]
[1750963294799,0.23662479,107330.0,107320.0,0.84585135]
[1750963295098,0.23662479,107330.0,107320.0,1.17234697]
[1750963295296,0.26782479,107330.0,107320.0,1.17234697]
[1750963297994,0.26782479,107330.0,107320.0,1.13924697]
[1750963298188,0.23662479,107330.0,107320.0,1.13924697]
[1750963298389,0.23662479,107330.0,107320.0,1.20234697]
[1750963300201,0.23662479,107330.0,107320.0,0.81375135]
[1750963300499,0.26982479,107330.0,107320.0,1.17194697]
[1750963304202,0.26982479,107330.0,107320.0,0.81375135]
[1750963304509,0.26982479,107330.0,107320.0,1.35078427]
[1750963314419,0.26982479,107330.0,107320.0,0.98998427]
[1750963314718,0.26982479,107330.0,107320.0,1.35078427]
[1750963325422,0.23662479,107330.0,107320.0,1.35078427]
[1750963325828,0.23662479,107330.0,107320.0,1.38208427]
[1750963326928,0.23662479,107330.0,107320.0,1.24636427]
[1750963327123,0.23662479,107330.0,107320.0,1.92474427]
[1750963327324,0.26972479,107330.0,107320.0,1.92474427]
[1750963329630,0.26972479,107330.0,107320.0,1.38771135]
[1750963329932,0.26972479,107330.0,107320.0,1.92474427]
[1750963331127,0.45600159,107330.0,107320.0,1.92474427]
[1750963332829,0.26972479,107330.0,107320.0,1.92474427]
[1750963333328,0.72451805,107330.0,107320.0,0.81236004]
[1750963333631,0.72451805,107330.0,107320.0,1.25340358]
[1750963334628,0.72451805,107330.0,107320.0,0.54384358]
[1750963334830,0.1862941,107320.0,107310.0,0.3260209]
[1750963335034,0.94422472,107320.0,107310.0,0.9003409]
[1750963335332,0.67570826,107320.0,107310.0,1.16885736]
[1750963335726,0.67570826,107320.0,107310.0,0.59453736]
[1750963335926,0.67570826,107320.0,107310.0,1.16885736]
[1750963336130,0.67670826,107320.0,107310.0,1.16885736]
[1750963336331,0.67870826,107320.0,107310.0,1.16885736]
[1750963338335,0.67870826,107320.0,107310.0,1.24436446]
[1750963339035,0.4101918,107320.0,107310.0,1.24436446]
[1750963339433,0.2561977,107320.0,107310.0,1.24436446]
[1750963339640,0.2561977,107320.0,107310.0,1.87368092]
[1750963339641,0.2258977,107320.0,107310.0,1.87368092]
[1750963339830,0.2258977,107320.0,107310.0,1.93618092]
[1750963342342,0.2258977,107320.0,107310.0,1.75720669]
[1750963342542,0.2258977,107320.0,107310.0,1.39640669]
[1750963342744,0.2258977,107320.0,107310.0,1.75720669]
[1750963343844,0.1985,107320.0,107310.0,1.75720669]
[1750963344339,0.22575342,107320.0,107310.0,1.75720669]
[1750963347246,0.1985,107320.0,107310.0,1.75720669]
[1750963348346,0.41205249,107320.0,107310.0,1.12038669]
[1750963348656,0.44485249,107320.0,107310.0,1.82974669]
[1750963349446,0.25855839,107320.0,107310.0,1.86024669]
[1750963353050,0.22575839,107320.0,107310.0,1.86024669]
[1750963357462,0.22575839,107320.0,107310.0,1.49944669]
[1750963357650,0.22575839,107320.0,107310.0,1.86024669]
[1750963358554,0.22575839,107320.0,107310.0,1.89144669]
[1750963361158,0.41205249,107320.0,107310.0,1.89144669]
[1750963361858,0.22575839,107320.0,107310.0,1.89144669]
[1750963362360,0.22575839,107320.0,107310.0,1.80195644]
[1750963362863,0.41205249,107320.0,107310.0,1.80195644]
[1750963363657,0.41205249,107320.0,107310.0,1.06139644]
[1750963363863,0.71392093,107320.0,107310.0,0.62351934]
[1750963364164,0.71392093,107320.0,107310.0,1.33231934]
[1750963364671,0.71392093,107320.0,107310.0,1.69311934]
[1750963365457,0.25905839,107320.0,107310.0,1.69311934]
[1750963365961,0.44535249,107320.0,107310.0,1.69311934]
[1750963366761,0.44535249,107320.0,107310.0,0.98431934]
[1750963367260,0.44535249,107320.0,107310.0,1.69307934]
[1750963367656,0.44535249,107320.0,107310.0,1.33227934]
[1750963367961,0.44535249,107320.0,107310.0,1.69307934]
[1750963368160,0.44535249,107320.0,107310.0,1.33227934]
[1750963368361,0.44535249,107320.0,107310.0,1.78260924]
[1750963368558,0.25905839,107320.0,107310.0,1.78260924]
[1750963370465,0.44535249,107320.0,107310.0,1.78260924]
[1750963370667,0.44535249,107320.0,107310.0,1.42180924]
[1750963370865,0.44535249,107320.0,107310.0,1.78260924]
[1750963371462,0.25905839,107320.0,107310.0,1.78260924]
[1750963372875,0.44535259,107320.0,107310.0,1.78260924]
[1750963373459,0.22575839,107320.0,107310.0,1.78260924]
[1750963373657,0.22575839,107320.0,107310.0,1.81330924]
[1750963374259,0.41205249,107320.0,107310.0,1.81330924]
[1750963375265,0.44205249,107320.0,107310.0,1.81330924]
[1750963375670,0.44205249,107320.0,107310.0,1.45250924]
[1750963375869,0.44205249,107320.0,107310.0,1.81330924]
[1750963376467,0.44205249,107320.0,107310.0,1.45250924]
[1750963376659,0.44205249,107320.0,107310.0,1.81330924]
[1750963378475,0.44205249,107320.0,107310.0,1.10454924]
[1750963378669,0.44205249,107320.0,107310.0,1.4243109]
[1750963378869,0.44205249,107320.0,107310.0,1.78240924]
[1750963383988,0.44205249,107320.0,107310.0,1.42160924]
[1750963384181,0.44205249,107320.0,107310.0,1.78240924]
[1750963387380,0.44205249,107320.0,107310.0,1.42160924]
[1750963387681,0.44205249,107320.0,107310.0,1.78240924]
[1750963387983,0.44205249,107320.0,107310.0,1.81270924]
[1750963388386,0.44205249,107320.0,107310.0,1.72318771]
[1750963392685,0.44205249,107320.0,107310.0,1.36238771]
[1750963395981,0.44205249,107320.0,107310.0,1.72318771]
[1750963403486,0.44205249,107320.0,107310.0,1.01462771]
[1750963403787,0.44205249,107320.0,107310.0,1.58778771]
[1750963405289,0.44205249,107320.0,107310.0,1.01462771]
[1750963405490,0.44205249,107320.0,107310.0,1.58770771]
[1750963409294,0.44205249,107320.0,107310.0,1.55736771]
[1750963409590,0.44205249,107320.0,107310.0,1.19656771]
[1750963409792,0.44205249,107320.0,107310.0,1.55736771]
[1750963410682,0.44205249,107320.0,107310.0,1.58766771]
[1750963414801,0.22575839,107320.0,107310.0,1.85624452]
[1750963415001,0.19255839,107320.0,107310.0,1.88644452]
[1750963415306,0.19255839,107320.0,107310.0,1.91974452]
[1750963416200,0.19255839,107320.0,107310.0,1.88644452]
[1750963416603,0.19255839,107320.0,107310.0,1.61786771]
[1750963417301,0.19255839,107320.0,107310.0,1.88644452]
[1750963417799,0.19255839,107320.0,107310.0,1.61786771]
[1750963420602,0.19255839,107320.0,107310.0,1.88644452]
[1750963420805,0.16025839,107320.0,107310.0,2.24724452]
[1750963421003,0.003,107320.0,107310.0,2.54642133]
[1750963421206,0.003,107320.0,107310.0,2.57664452]
[1750963421703,0.03011414,107320.0,107310.0,2.57664452]
[1750963422408,0.003,107320.0,107310.0,2.57664452]
[1750963424607,0.03009584,107320.0,107310.0,2.57664452]
[1750963425620,0.003,107320.0,107310.0,2.57664452]
[1750963428524,0.00082709,107330.0,107320.0,0.1862941]
[1750963428730,0.05062709,107330.0,107320.0,1.56453896]
[1750963428918,0.05062709,107330.0,107320.0,1.59753896]
[1750963430924,0.05262709,107330.0,107320.0,1.89633896]
[1750963431120,0.001,107360.0,107330.0,0.2328428]
[1750963431324,0.1833,107360.0,107350.0,0.72339572]
[1750963431528,0.21040006,107360.0,107350.0,0.7691248]
[1750963432026,0.24160006,107360.0,107350.0,0.50054799]
[1750963432224,0.24160006,107360.0,107350.0,0.58978626]
[1750963432618,0.24960006,107360.0,107350.0,0.59078626]
[1750963435330,0.2225,107360.0,107350.0,0.59078626]
[1750963436131,0.2225,107360.0,107350.0,0.57008647]
[1750963437129,0.2225,107360.0,107350.0,1.27672647]
[1750963437731,0.2225,107360.0,107350.0,1.63752647]
[1750963440828,0.1913,107360.0,107350.0,1.63752647]
[1750963441030,0.082275,107360.0,107350.0,2.02634155]
[1750963441227,0.082275,107360.0,107350.0,2.05874155]
[1750963441834,0.008,107360.0,107350.0,1.34311139]
[1750963442027,0.008,107360.0,107350.0,1.70092647]
[1750963442226,0.005,107360.0,107350.0,1.70092647]
[1750963442932,0.002,107360.0,107350.0,1.69992647]
[1750963444024,0.002,107360.0,107350.0,2.05774155]
[1750963444235,0.002,107360.0,107350.0,1.69992647]
[1750963445736,0.002,107360.0,107350.0,2.06072647]
[1750963446536,0.002,107360.0,107350.0,1.33912647]
[1750963446738,0.002,107360.0,107350.0,2.06072647]
[1750963446934,0.2067,107360.0,107350.0,1.63620647]
[1750963447134,0.2392,107360.0,107350.0,1.63620647]
[1750963451430,0.2392,107360.0,107350.0,1.66930647]
[1750963452341,0.2392,107360.0,107350.0,2.03010647]
[1750963456439,0.0992,107360.0,107350.0,2.03010647]
[1750963457142,0.0992,107360.0,107350.0,1.30850647]
[1750963457334,0.0992,107360.0,107350.0,2.03010647]
[1750963462542,0.2392,107360.0,107350.0,0.90745118]
[1750963462749,0.2392,107360.0,107350.0,1.26526626]
[1750963463640,0.26635702,107360.0,107350.0,1.26526626]
[1750963466150,0.26635702,107360.0,107350.0,1.2745657]
[1750963468653,0.2067,107360.0,107350.0,1.6353657]
[1750963468850,0.1752,107360.0,107350.0,1.6979657]
[1750963469152,0.1752,107360.0,107350.0,1.7294657]
[1750963469355,0.0352,107360.0,107350.0,1.7294657]
[1750963470654,0.0352,107360.0,107350.0,2.0902657]
[1750963471258,0.002,107360.0,107350.0,2.0902657]
[1750963475157,0.002,107360.0,107350.0,2.3890657]
[1750963480461,0.002,107360.0,107350.0,1.6674657]
[1750963480761,0.002,107360.0,107350.0,2.3890657]
[1750963482657,0.002,107360.0,107350.0,1.6674657]
[1750963482961,0.002,107360.0,107350.0,2.74688078]
[1750963483362,0.002,107360.0,107350.0,2.3890657]
[1750963483563,0.002,107360.0,107350.0,2.74688078]
[1750963483962,0.002,107360.0,107350.0,2.3890657]
[1750963485367,0.002,107360.0,107350.0,2.74688078]
[1750963485563,0.001,107390.0,107380.0,0.1861903]
[1750963485872,0.2213307,107390.0,107380.0,1.61000538]
[1750963486669,0.2213307,107390.0,107380.0,1.64080538]
[1750963487165,0.2213307,107390.0,107380.0,1.64180538]
[1750963487166,0.2313307,107390.0,107380.0,1.64180538]
[1750963488171,0.2283307,107390.0,107380.0,1.64180538]
[1750963488973,0.2011,107390.0,107380.0,1.64180538]
[1750963489272,0.2011,107390.0,107380.0,1.71792109]
[1750963490766,0.138,107390.0,107380.0,1.71792109]
[1750963490966,0.0306,107410.0,107380.0,2.76215937]
[1750963491265,0.08908929,107410.0,107400.0,1.27794887]
[1750963491472,0.21908929,107410.0,107400.0,1.98302887]
[1750963491669,0.08908929,107410.0,107400.0,1.65701379]
[1750963492274,0.0619,107410.0,107400.0,2.01482887]
[1750963492773,0.0619,107410.0,107400.0,1.65701379]
[1750963493976,0.08908748,107410.0,107400.0,1.65701379]
[1750963494277,0.22908748,107410.0,107400.0,1.63021379]
[1750963494968,0.80862578,107410.0,107400.0,0.57362878]
[1750963495162,0.80862578,107410.0,107400.0,0.70730878]
[1750963495368,0.80862578,107410.0,107400.0,1.28054878]
[1750963496272,0.80862578,107410.0,107400.0,1.27125379]
[1750963496577,0.80862578,107410.0,107400.0,1.26925379]
[1750963496875,0.62248748,107410.0,107400.0,1.27025379]
[1750963497069,0.5953,107410.0,107400.0,1.27025379]
[1750963497476,0.2345,107410.0,107400.0,1.26625379]
[1750963498176,0.2345,107410.0,107400.0,0.56133379]
[1750963498379,0.2345,107410.0,107400.0,1.26621379]
[1750963506070,0.4206383,107410.0,107400.0,0.20351871]
[1750963506275,0.77845338,107410.0,107400.0,0.90823871]
[1750963506684,0.4206383,107410.0,107400.0,0.90823871]
[1750963507082,0.7814383,107410.0,107400.0,0.20351871]
[1750963507281,0.7814383,107410.0,107400.0,0.77451871]
[1750963507580,0.7814383,107410.0,107400.0,0.20351871]
[1750963507782,0.7814383,107410.0,107400.0,0.7591556]
[1750963507970,1.13925338,107410.0,107400.0,0.7581556]
[1750963508283,1.13925338,107410.0,107400.0,0.7571556]
[1750963508474,1.14025338,107410.0,107400.0,0.1861556]
[1750963508670,0.7824383,107410.0,107400.0,0.1861556]
[1750963511888,0.2355,107410.0,107400.0,0.54397068]
[1750963513276,0.2355,107410.0,107400.0,0.90477068]
[1750963513984,0.2355,107410.0,107400.0,0.90577068]
[1750963514379,0.2365,107410.0,107400.0,0.90577068]
[1750963515180,0.2345,107410.0,107400.0,0.90577068]
[1750963515384,0.2019,107410.0,107400.0,0.93727068]
[1750963515682,0.2019,107410.0,107400.0,0.96767068]
[1750963518284,0.22840957,107410.0,107400.0,0.96767068]
[1750963526787,0.22840957,107410.0,107400.0,0.60687068]
[1750963527090,0.22840957,107410.0,107400.0,0.96767068]
[1750963529589,0.16650957,107410.0,107400.0,1.32548576]
[1750963529782,0.16650957,107410.0,107400.0,1.35718576]
[1750963530884,0.14,107410.0,107400.0,1.35718576]
[1750963531595,0.14,107410.0,107400.0,1.71798576]
[1750963534092,0.16646058,107410.0,107400.0,1.71798576]
[1750963534291,0.16646058,107410.0,107400.0,2.01678576]
[1750963535393,0.02646058,107410.0,107400.0,2.01678576]
[1750963535594,0.0012,107420.0,107410.0,0.1861384]
[1750963535797,0.131,107420.0,107410.0,1.67325348]
[1750963535998,0.15745718,107420.0,107410.0,1.70615348]
[1750963537698,0.15945718,107420.0,107410.0,1.70615348]
[1750963538292,0.15945718,107420.0,107410.0,1.67305348]
[1750963538492,0.15945718,107420.0,107410.0,1.70425348]
[1750963540203,0.15945718,107420.0,107410.0,2.00305348]
[1750963540703,0.133,107420.0,107410.0,2.00605348]
[1750963541605,0.131,107420.0,107410.0,2.00805348]
[1750963541812,0.131,107420.0,107410.0,1.64725348]
[1750963542105,0.131,107420.0,107410.0,2.36885348]
[1750963545110,0.0656,107430.0,107410.0,2.18271508]
[1750963545314,0.0326,107430.0,107420.0,0.90473618]
[1750963545605,0.0324,107430.0,107420.0,1.01423246]
[1750963546307,0.062,107440.0,107430.0,0.1861038]
[1750963546506,0.21696973,107440.0,107430.0,1.63909888]
[1750963547602,0.1905,107440.0,107430.0,1.63909888]
[1750963548109,0.1925,107440.0,107430.0,1.63909888]
[1750963548998,0.1925,107440.0,107430.0,1.2812838]
[1750963549207,0.1925,107440.0,107430.0,1.63909888]
[1750963554518,0.224,107440.0,107430.0,1.63909888]
[1750963557922,0.224,107440.0,107430.0,1.93789888]
[1750963558615,0.224,107440.0,107430.0,1.57709888]
[1750963558813,0.224,107440.0,107430.0,1.93789888]
[1750963559321,0.1925,107440.0,107430.0,1.93789888]
[1750963559517,0.1625,107440.0,107430.0,2.32591396]
[1750963560014,0.1625,107440.0,107430.0,2.35701396]
[1750963560210,0.08201658,107450.0,107440.0,0.1860864]
[1750963560416,0.04971658,107450.0,107440.0,1.56131656]
[1750963560615,0.0327,107450.0,107440.0,1.59231656]
[1750963560816,0.0327,107450.0,107440.0,1.67003106]
[1750963562023,0.0347,107450.0,107440.0,1.67003106]
[1750963562622,0.0427,107450.0,107440.0,1.67003106]
[1750963562814,0.0437,107450.0,107440.0,1.67003106]